Cogmind - Beta 17 @@@ ROGUE MODE // 2026.07.25 @ 18:23:25 Player: Louistron Result: Destroyed by 1P-AZH(R) with Subdweller Laser Performance ------------- Evolutions (0) 0 Regions Visited (3) 600 Robots Destroyed (25) 125 Value Destroyed (553) 553 Prototype IDs (4) 80 Alien Tech Used (0) 0 Bonus (0) 0 TOTAL SCORE: 1358 Bonus ------- None Cogmind --------- Core Integrity 0/250 Matter 265/300 Energy 96/100 System Corruption 0% Temperature Cool (8) Movement Treading (160) Location -10/Subcaves Parts ------- > --- POWER (1) -------- (None) > --- PROPULSION (2) --- Light Treads Light Treads > --- UTILITY (2) ------ Small Storage Unit > --- WEAPON (2) ------- Particle Gun Assault Rifle > --- INVENTORY (8) ---- Light Armor Plating Scrap Shield Particle Gun Light Assault Rifle Rocket Launcher Peak State ------------ > --- POWER ------------ Light Nuclear Core > --- PROPULSION ------- Light Treads Light Treads > --- UTILITY ---------- Cooling System Small Storage Unit > --- WEAPON ----------- Particle Gun Assault Rifle > --- INVENTORY -------- Light Nuclear Core Light Treads Light Treads Light Armor Plating Light Armor Plating Particle Gun Light Assault Rifle Grenade Launcher [Rating: 12] Favorites ----------- Power Light Nuclear Core Engine Ion Engine Power Core Light Nuclear Core Propulsion Light Treads Treads Light Treads Utility Small Storage Unit Device Cooling System Storage Small Storage Unit Protection Light Armor Plating Weapon Assault Rifle Energy Gun Particle Gun Ballistic Gun Assault Rifle Build | -11 -10 -10 -10 ------- Run | Yrd Mat Min Sub Slots Evolved . | . . . . Power . | . . . . Propulsion . | . . . . Utility . | . . . . Weapon . | . . . . Parts Attached 15 | 6 6 1 2 Power 3 | 1 1 1 . Engine 1 | 1 . . . Core 2 | . 1 1 . Reactor . | . . . . Propulsion 4 | 2 1 . 1 Treads 4 | 2 1 . 1 Leg . | . . . . Wheel . | . . . . Hover . | . . . . Flight . | . . . . Utility 5 | 1 3 . 1 Device 2 | . 2 . . Storage 1 | 1 . . . Processor . | . . . . Hackware . | . . . . Protection 2 | . 1 . 1 Artifact . | . . . . Weapon 3 | 2 1 . . Energy Gun 2 | 1 1 . . Energy Cannon . | . . . . Ballistic Gun 1 | 1 . . . Ballistic Cannon . | . . . . Launcher . | . . . . Special Weapon . | . . . . Impact Weapon . | . . . . Slashing Weapon . | . . . . Piercing Weapon . | . . . . Special Melee Weapon . | . . . . Unidentified Prototypes . | . . . . Parts Lost 6 | . 1 1 4 Power 2 | . . 1 1 Propulsion 1 | . . . 1 Utility 3 | . 1 . 2 Weapon . | . . . . Highest Loss Streak 4 | . 1 1 4 To Critical Strikes . | . . . . Average Backups 6 | 1 6 6 6 Power . | . . . . Propulsion 1 | . 1 1 . Utility 1 | . 1 2 2 Weapon 2 | . 3 3 3 Tool/Special . | . . . . Unused Backups 7 | . 2 . 5 Power 1 | . 1 . . Propulsion . | . . . . Utility 2 | . . . 2 Weapon 4 | . 1 . 3 Tool/Special . | . . . . Average Slot Usage (%) 98 | . 98 100 93 Engine 1 | . 1 . . Core 12 | . 12 14 10 Treads 27 | . 27 28 27 Device 11 | . 11 14 8 Storage 14 | . 14 14 14 Protection 1 | . 2 . 3 Energy Gun 14 | . 14 14 14 Ballistic Gun 14 | . 14 14 14 Peak Build Rating 12 | 6 12 12 12 Average Rating 10 | 4 10 11 10 On Entrance 7 | . 6 12 11 Avg Prop Armor Cover (%) . | . . . . Naked Turns . | . . . . Heaviest Build 18 | 14 18 17 18 Greatest Support 40 | 40 40 40 40 Greatest Overweight (x) 1 | 1 . . . Average Overweight (x) . | . . . . Largest Inventory Capacity 8 | 8 8 8 8 Average Capacity 7 | 7 8 8 8 Most Carried 8 | 5 8 7 8 Average Carried 6 | 1 6 6 7 Final Capacity 8 | 8 8 8 8 Final Carried 7 | 1 7 6 6 Class Distribution -------------------- 100% | Mutant Dominant Class ---------------- Mutant | -10/Materials Mutant | -10/Mines Mutant | -10/Subcaves Resources | -11 -10 -10 -10 ----------- Run | Yrd Mat Min Sub Matter Collected 516 | 266 171 79 . Remotely . | . . . . Salvage Created 784 | 75 523 98 88 Parts 55 | 3 33 15 4 Haulers Intercepted 2 | . 2 . . Recyclers Shooed . | . . . . Parts Field Recycled . | . . . . Retrieved Matter . | . . . . Parts Self-Destructed . | . . . . Prevented . | . . . . Parts Restored . | . . . . Kills | -11 -10 -10 -10 ------- Run | Yrd Mat Min Sub Combat Hostiles Destroyed 20 | . 10 8 2 Guns 20 | . 10 8 2 Classes Destroyed 6 | 1 4 . 1 Hauler 2 | . 2 . . Recycler 1 | 1 . . . Watcher 2 | . 2 . . Swarmer 10 | . 2 8 . Grunt 8 | . 8 . . Subdweller 2 | . . . 2 Best Kill Streak 3 | 1 3 3 2 Combat Bots Only 3 | . 2 3 2 Max Kills in Single Turn 2 | 1 1 2 1 Gunslinging . | . . . . Exploded . | . . . . Melee . | . . . . Uniques/NPCs Destroyed . | . . . . Combat | -11 -10 -10 -10 -------- Run | Yrd Mat Min Sub Hostile Shots Fired 116 | . 54 33 29 Missed 32 | . 15 7 10 Hits 84 | . 39 26 19 Projectile 84 | . 39 26 19 AOE 5 | . . . 5 Critical Strikes 2 | . 1 . 1 Damage Taken 1185 | . 444 186 555 Core 271 | . 61 31 179 Absorbed by Shields . | . . . . Regen/Repaired (Parts) 105 | . 105 . . Core Remaining (%) 100 | 100 . . . Volleys Fired 73 | 2 42 18 11 Largest 2 | 2 2 2 2 Hottest 85 | 60 85 85 85 Shots Fired 141 | 4 79 36 22 Gun 141 | 4 79 36 22 Cannon . | . . . . Launcher . | . . . . Special . | . . . . Kinetic 73 | 2 42 18 11 Thermal 59 | . 30 18 11 Explosive . | . . . . Electromagnetic 9 | 2 7 . . Robot Hit Streak 10 | 1 10 6 7 Robot Miss Streak 5 | 1 4 5 2 Penetration Max . | . . . . Secondary Targets 3 | . 1 2 . Max Gunslinging Chain 1 | . 1 1 . Shots Hit Robots 84 | 2 51 17 14 Core Hits 41 | 2 26 8 5 Critical Kills . | . . . . Critical Parts Destroyed . | . . . . Critical Strikes 1 | . 1 . . Corrupt 1 | . 1 . . Melee Attacks . | . . . . Impact . | . . . . Slashing . | . . . . Piercing . | . . . . Sneak Attacks . | . . . . Combat Hostiles . | . . . . Follow-up Attacks . | . . . . Damage Inflicted 1194 | 26 718 267 183 Guns 1194 | 26 718 267 183 Cannons . | . . . . Explosions . | . . . . Melee . | . . . . Ramming . | . . . . Kinetic 532 | . 342 93 97 Thermal 561 | . 301 174 86 Explosive . | . . . . Electromagnetic 101 | 26 75 . . Impact . | . . . . Slashing . | . . . . Piercing . | . . . . Highest Corruption . | . . . . Average Corruption . | . . . . Corruption Purged . | . . . . Corruption Blocked . | . . . . Overload Shots . | . . . . Overflow Damage . | . . . . Projectiles . | . . . . Explosions . | . . . . Melee . | . . . . Knockbacks . | . . . . Impact . | . . . . Kinetic . | . . . . Secondary . | . . . . Self-Inflicted Damage . | . . . . Shots . | . . . . Rammed . | . . . . Targets Rammed . | . . . . Kicked . | . . . . Crushed . | . . . . Highest Temperature 297 | . 297 . 2 Average Temperature 106 | . 109 . 1 Received Heat Transfer 318 | . 189 . 129 Effects 1 | . 1 . . Energy Bleed 1 | . 1 . . Siege Activations . | . . . . Martial Activations . | . . . . Shielding Activations . | . . . . Robots Disrupted . | . . . . Combat Hostiles . | . . . . Robots Corrupted . | . . . . Combat Hostiles . | . . . . Parts Fried . | . . . . Impact Corruptions . | . . . . Robots Melted . | . . . . Combat Hostiles . | . . . . Parts Melted 2 | . 1 . 1 Heat Transferred 1332 | . 703 407 222 Parts Sabotaged . | . . . . Parts Stolen . | . . . . Parts Stripped . | . . . . Power Chain Reactions . | . . . . Alert | -11 -10 -10 -10 ------- Run | Yrd Mat Min Sub Maximum Alert Level . | . . . . Low Security (%) 100 | 100 100 100 . Level 1 . | . . . . Level 2 . | . . . . Level 3 . | . . . . Level 4 . | . . . . Level 5 . | . . . . High Security . | . . . . Max Security . | . . . . Peak Influence 98 | 5 98 90 . Initial . | . . . . Average 30 | . 32 30 . Influence Increases 531 | 5 336 190 . Destroy 0b10 Robot/C 360 | . 200 160 . Destroy 0b10 Robot/NC 25 | 5 20 . . Destroy Leader 88 | . 58 30 . Successful Hack 25 | . 25 . . Disable Machine 30 | . 30 . . Destroy Structure 3 | . 3 . . Influence Decreases 531 | 5 336 170 20 Entered New Map 11 | . . . 11 Time Decay 500 | 5 326 160 9 Lost Part 20 | . 10 10 . Squads Dispatched 1 | . 1 . . Investigation . | . . . . Extermination . | . . . . Reinforcement 1 | . 1 . . Assault . | . . . . Garrison . | . . . . Intercept . | . . . . Searches Triggered . | . . . . Construction Impeded . | . . . . Haulers Reinforced . | . . . . Active Scanning Responses . | . . . . Cargo Convoy Interrupts . | . . . . Stealth | -11 -10 -10 -10 --------- Run | Yrd Mat Min Sub Distress Signals 1 | . 1 . . Communications Jammed . | . . . . Distress Signals . | . . . . Times Spotted 31 | . 16 7 8 Peak Tracking Total 5 | . 4 3 5 Tactical Retreats 1 | . . . 1 Traps | -11 -10 -10 -10 ------- Run | Yrd Mat Min Sub Traps Triggered . | . . . . Indirectly . | . . . . Trap Hack Attempts . | . . . . Triggered . | . . . . Disarmed . | . . . . Reprogrammed . | . . . . Reused . | . . . . Traps Extracted . | . . . . Installed . | . . . . Triggered . | . . . . Machines | -11 -10 -10 -10 ---------- Run | Yrd Mat Min Sub Machines Disabled 2 | . 2 . . Max in Single Turn 1 | . 1 . . Machines Repaired . | . . . . Machines Dismantled . | . . . . Machines Sabotaged . | . . . . Overloaded Fab Kills . | . . . . Hacking | -11 -10 -10 -10 --------- Run | Yrd Mat Min Sub Machines Accessed 7 | . 7 . . Terminals 6 | . 6 . . Fabricators . | . . . . Repair Stations 1 | . 1 . . Recycling Units . | . . . . Scanalyzers . | . . . . Garrison Access . | . . . . Total Hacks 19 | . 19 . . Successful 10 | . 10 . . Failed 9 | . 9 . . Catastrophic . | . . . . Database Lockouts . | . . . . Manual . | . . . . Terminals 13 | . 13 . . Fabricators . | . . . . Repair Stations 6 | . 6 . . Recycling Units . | . . . . Scanalyzers . | . . . . Garrison Access . | . . . . Terminal Hacks 6 | . 6 . . Prototype ID Bank 3 | . 3 . . Locate Traps 3 | . 3 . . Fabricator Hacks . | . . . . Repair Station Hacks 4 | . 4 . . Scan Component 3 | . 3 . . Repair 1 | . 1 . . Recycling Unit Hacks . | . . . . Scanalyzer . | . . . . Garrison Access Hacks . | . . . . Unauthorized Hacks . | . . . . Terminals . | . . . . Fabricators . | . . . . Repair Stations . | . . . . Recycling Units . | . . . . Scanalyzers . | . . . . Garrison Access . | . . . . Data Cores Recovered . | . . . . Used . | . . . . Hacking Detections 5 | . 5 . . Full Trace Events 1 | . 1 . . Feedback Events . | . . . . Feedback Blocked . | . . . . Robot Schematics Acquired . | . . . . Robots Built . | . . . . Authchips . | . . . . Time . | . . . . Total Robot Build Rating . | . . . . Part Schematics Acquired . | . . . . Parts Built . | . . . . Authchips . | . . . . Time . | . . . . Total Part Build Rating . | . . . . Part Studies Acquired . | . . . . Parts Repaired 1 | . 1 . . Time 26 | . 26 . . Parts Recycled . | . . . . Recycled Matter . | . . . . Retrieved Matter . | . . . . Retrieved Components . | . . . . Parts Scanalyzed . | . . . . Part Schematics Acquired . | . . . . Parts Damaged . | . . . . Bothacking | -11 -10 -10 -10 ------------ Run | Yrd Mat Min Sub Used RIF Installer . | . . . . Robots Hacked . | . . . . Non-combat . | . . . . Combat . | . . . . Robot Hacks Applied . | . . . . Relay Couplers Released . | . . . . Fabnet Peak Effective % . | . . . . Robots Rewired . | . . . . Allies Hacked . | . . . . Hacks Repelled . | . . . . Allies | -11 -10 -10 -10 -------- Run | Yrd Mat Min Sub Total Allies 1 | . . 1 . Largest Group 1 | . . 1 1 Highest-Rated Group 31 | . . 31 31 Highest-Rated Ally 31 | . . 31 31 Total Orders . | . . . . Ally Attacks 3 | . . . 3 Total Damage 43 | . . . 43 Kills . | . . . . Allies Corrupted . | . . . . Allies Melted . | . . . . Intel | -11 -10 -10 -10 ------- Run | Yrd Mat Min Sub Active Infowar (turns) . | . . . . Robot Analysis Total . | . . . . Derelict Logs Recovered 2 | . . 2 . Drone Launches . | . . . . Drone Recoveries . | . . . . Exploration | -11 -10 -10 -10 ------------- Run | Yrd Mat Min Sub Turns Passed 1973 | 79 1186 524 184 Spaces Moved 1012 | 49 604 276 83 Core 19 | 19 . . . Treads 993 | 30 604 276 83 Legs . | . . . . Wheels . | . . . . Hover . | . . . . Flight . | . . . . Fastest Speed 50 | 50 160 160 160 Average Speed 157 | 118 160 160 160 Slowest Speed 160 | 160 160 160 160 Overloaded Moves . | . . . . Propulsion Burnouts . | . . . . Robots Hopped . | . . . . Potential Cave-ins . | . . . . Cave-ins Triggered . | . . . . Exploration Rate (%) 38 | 3 91 49 12 Regions Visited 3 Branch Regions 2 Pre-discovered Areas 1 | . . 1 . Known Exits Taken . | . . . . Unknown Exits Taken 3 | 1 1 1 . Scrap Searched 1 | . . 1 . Spaces Dug . | . . . . Terrain Destroyed . | . . . . Melee . | . . . . Projectile . | . . . . AOE . | . . . . Terrain Rammed . | . . . . Walls Destroyed . | . . . . Machines Disabled . | . . . . Actions | -11 -10 -10 -10 --------- Run | Yrd Mat Min Sub Total 1252 | 67 749 323 113 Wait 122 | 3 74 29 16 Move 1009 | 48 603 275 83 Hop . | . . . . Pick Up 23 | 7 15 . 1 Fast Attach 2 | 1 1 . . Attach 13 | 5 5 1 2 Detach 1 | . 1 . . Swap 1 | . 1 . . Drop 8 | 1 7 . . Fire 73 | 2 42 18 11 Melee . | . . . . Ram . | . . . . Kick . | . . . . Crush . | . . . . Escape Stasis . | . . . . Rewire . | . . . . Trap . | . . . . Miscellaneous . | . . . . Route ------- -11/Scrapyard -10/Materials (discovered 4 exits: [*Mat x2] / [*Min x2]) -10/Mines -10/Subcaves History --------- Turn | Location | Event 6 | -11/Scrapyard | Discovered new exit (range 16) 80 | -11/Scrapyard | Entered Materials 261 | -10/Materials | Discovered new exit (range 7) 316 | -10/Materials | Build established: Mutant 408 | -10/Materials | Discovered new exit (range 5) 518 | -10/Materials | Discovered new exit (range 11) 860 | -10/Materials | Discovered new exit (range 16) 1221 | -10/Materials | Repaired Lgt. Treads 1266 | -10/Materials | Entered Mines 1294 | -10/Mines | Met a Derelict bent on vengeance 1374 | -10/Mines | Learned location of Storage (-7) 1645 | -10/Mines | Found a hidden stash of uninstalled traps 1724 | -10/Mines | Escorted by a lone wolf Derelict 1782 | -10/Mines | Discovered new exit (range 6) 1790 | -10/Mines | Entered Subcaves 1790 | -10/Subcaves | Accompanied by 1 ally 1880 | -10/Subcaves | Ambushed by swarm of Subdwellers 1882 | -10/Subcaves | Core integrity fell below 50% 1924 | -10/Subcaves | Lost 3 allies 1933 | -10/Subcaves | Core integrity fell below 20% 1974 | -10/Subcaves | Destroyed by 1P-AZH(R) with Subdweller Laser Last Messages --------------- Machinery. 01890_ Cooling System destroyed. 01892_ HV Slug penetrates WD-IN4(R). 01892_ HV Slug penetrates GL-0KB(R). 01892_ GL-0KB(R) suffers critical hit (Destroy). 01892_ GL-0KB(R) destroyed. 01893_ 1P-AZH(R) emerges from the Twisted Machinery. 01893_ WX-L5L(h) destroyed. 01896_ WD-IN4(R) suffers critical hit (Burn). 01899_ WD-IN4(R) affixes Scrap Shield Fragment to Scrap Shield. 01906_ Subatomizers dissect the Beamcaster. 01917_ Lgt. Treads destroyed. 01921_ AI-2AF(R) destroyed. 01923_ Lgt. Nuclear Core destroyed. 01944_ Lgt. Armor Plating destroyed. 01964_ Disposable Heat Sink melted. 01964_ IX-5W0(R) destroyed. 01967_ 1Q-DXH(R) destroyed. Map ----- +----------------------------------------------------+ | ?????????????????????????????????????????????????? | | ?????????????????????????????????????????????????? | | ?????????????????????????????????????????????????? | | ?????????????????????????????????????????????????? | | ?????????????????????????????????????????????????? | | ?????????????????????????????????????????????????? | | ?????????????????????????????????????????????????? | | ?????????????????????????????????????????????????? | | ?????????????????????????????????????????????????? | | ?????????????????????????????????????????????????? | | ?????????????????????????#???????????????????????? | | ????????????????????????# ##?????????????????????? | | ???????????????????????? ?????????????????????? | | ???????????????????????# ?????????????????????? | | ??????????????????????## #?????????????????????? | | ??????????????????????? ##????????????????????? | | ??????????????????????? ##???????????????????? | | ??????????????????????? ##??????????????????? | | ??????????????????????? #??????????????????? | | ???????????????????????? ###????????????????? | | ???????????????????????? ?????????????????? | | ???????????????????????? ??????????????????? | | ???????????????????????? #???????????????????? | | ????????????????????????# #???????????????????? | | ????????????????????##### #???????????????????? | | ????????????????????# @ ##??????????????????? | | ????????????????????# #??????????????????? | | ????????????????????# ####??????????????????? | | ????????????????????## ## ##?????????????????? | | ?????????????????????#### #?????????????????? | | ????????????????????????# ##?????????????????? | | ????????????????????????# #??????????????????? | | ?????????????????????#### #??????????????????? | | ?????????????????????# ##??????????????????? | | ?????????????????????## ##???????????????????? | | ??????????????????????## ##????????????????????? | | ??????????????????????##&]##?????????????????????? | | ??????????????????????# &R#####??????????????????? | | ??????????????????????# !* "#?????????????# ??? | | ??????????????????????## ##??????????## ???? | | ???????????????????????## ##????????? ???? | | ????????????????????????# ##???????# ????? | | ????????????????????????## "#####?# ?????? | | ?????????????????????????#### #? #?????? | | ????????????????????????????####" ##? #?????? | | ????????????????????????????????# & ### ##????? | | ?????????????????????????????#### %## # #????? | | ????????????????????????????## """"" #??### | | ????????????????????????????# """ #? | | ????????????????????????????# #" ## | +----------------------------------------------------+ Best States ------------- Heat Dissipation 47 Energy Generation 14 Energy Capacity 250 Matter Stores 300 Matter Capacity 300 Sight Range 16 Terrain Scan Density 10 Armor Coverage 150 Evasion (%) 50 Recoil Reduction 2 Item Schematics ----------------- None Robot Schematics ------------------ None Fabricated ------------ Nothing Repaired ---------- Lgt. Treads | 25% | -10/Materials Studied --------- None Alien Tech Used ----------------- None Achievements -------------- None Challenges ------------ None Game ------ Seed HellfireDecoyBlade Manual? 0 Play Time 00:23:36 Cumulative 34.6 hours Start 2026.07.25 @ 17:58:55 End 2026.07.25 @ 18:23:25 Sessions 1 Manual Loads 0 Difficulty Rogue Special Mode None Game No. 51 Rogue 51 Adventurer 0 Explorer 0 Win Type - Total 0 Types 0/0/0/0/0/0/0/0/0/0 Lore% 5 Gallery% 13 Achievement% 11 Wizard Run 0 Options --------- Layout 1 ASCII 0 Keyboard 1 Movement Vi Keybinds 0 Fullscreen 1 Font 24/Smallcaps Map View 50x35 Zoom Use 0% Tactical HUD 1 Map Filters NONE Filters NONE Steam 1 RUN: 38a0376e-8060-4ef5-a86f-16cd80731c96